Cogmind - Beta 15 @@@ ROGUE MODE // 2025.06.24 @ 20:55:56 Player: dorusv Result: Destroyed by S-10 Pest with Light Assault Rifle Performance ------------- Evolutions (0) 0 Regions Visited (1) 200 Robots Destroyed (14) 70 Value Destroyed (140) 140 Prototype IDs (0) 0 Alien Tech Used (0) 0 Bonus (0) 0 TOTAL SCORE: 410 Bonus ------- None Cogmind --------- Core Integrity 0/250 Matter 139/300 Energy 242/250 System Corruption 0% Temperature Cool (6) Movement Flying (112) Ox1 Location -10/Materials Parts ------- > --- POWER (1) -------- Ion Engine > --- PROPULSION (2) --- VTOL Module VTOL Module > --- UTILITY (2) ------ Heat Sink Terrain Scanner > --- WEAPON (2) ------- Particle Cannon > --- INVENTORY (5) ---- Wheel Improved Terrain Scanner Particle Cannon Hammer Peak State ------------ > --- POWER ------------ Light Ion Engine > --- PROPULSION ------- VTOL Module VTOL Module > --- UTILITY ---------- Improved Terrain Scanner Seismic Detector > --- WEAPON ----------- Particle Cannon Particle Cannon > --- INVENTORY -------- Ion Engine Wheel VTOL Module VTOL Module Light Assault Rifle [Rating: 13] Favorites ----------- Power Light Ion Engine Engine Light Ion Engine Propulsion VTOL Module Treads Light Treads Wheel Compact Wheel Flight Unit VTOL Module Utility Improved Terrain Scanner Device Improved Terrain Scanner Storage Small Storage Unit Weapon Particle Cannon Energy Gun Medium Laser Energy Cannon Particle Cannon Ballistic Gun Assault Rifle Launcher Grenade Launcher Build | -11 -10 ------- Run | Yrd Mat Slots Evolved . | . . Power . | . . Propulsion . | . . Utility . | . . Weapon . | . . Parts Attached 21 | 10 11 Power 2 | 1 1 Engine 2 | 1 1 Core . | . . Reactor . | . . Propulsion 8 | 4 4 Treads 2 | 2 . Leg . | . . Wheel 2 | 2 . Hover . | . . Flight 4 | . 4 Utility 5 | 3 2 Device 4 | 2 2 Storage 1 | 1 . Processor . | . . Hackware . | . . Protection . | . . Artifact . | . . Weapon 6 | 2 4 Energy Gun 1 | 1 . Energy Cannon 3 | . 3 Ballistic Gun 1 | 1 . Ballistic Cannon . | . . Launcher 1 | . 1 Special Weapon . | . . Impact Weapon . | . . Slashing Weapon . | . . Piercing Weapon . | . . Special Melee Weapon . | . . Unidentified Prototypes . | . . Parts Lost 7 | . 7 Power 1 | . 1 Propulsion 2 | . 2 Utility 1 | . 1 Weapon 3 | . 3 Highest Loss Streak 6 | . 6 To Critical Strikes . | . . Average Backups 3 | 3 3 Power . | . . Propulsion 1 | 1 2 Utility . | . . Weapon . | . 1 Tool/Special . | . . Unused Backups 5 | . 5 Power . | . . Propulsion 2 | . 2 Utility . | . . Weapon 3 | . 3 Tool/Special . | . . Average Slot Usage (%) 90 | . 90 Engine 13 | . 13 Flight 22 | . 22 Device 25 | . 25 Energy Gun 1 | . 1 Energy Cannon 15 | . 15 Ballistic Gun 1 | . 1 Launcher 7 | . 7 Peak Build Rating 13 | 9 13 Average Rating 9 | 7 10 On Entrance 4 | . 9 Naked Turns . | . . Heaviest Build 14 | 12 14 Greatest Support 40 | 40 26 Greatest Overweight (x) 4 | 2 4 Average Overweight (x) . | . 1 Largest Inventory Capacity 8 | 8 5 Average Capacity 5 | 5 5 Most Carried 5 | 4 5 Average Carried 3 | 3 3 Final Capacity 5 | 5 5 Final Carried 4 | 4 4 Class Distribution -------------------- 100% | Mutant Dominant Class ---------------- Mutant | -10/Materials Resources | -11 -10 ----------- Run | Yrd Mat Matter Collected 477 | 411 66 Remotely . | . . Salvage Created 330 | 264 66 Parts 23 | 22 1 Haulers Intercepted . | . . Recyclers Shooed 1 | 1 . Parts Field Recycled . | . . Retrieved Matter . | . . Parts Self-Destructed . | . . Prevented . | . . Kills | -11 -10 ------- Run | Yrd Mat Combat Hostiles Destroyed 2 | . 2 Cannons 1 | . 1 AOE 1 | . 1 Classes Destroyed 4 | 3 1 Worker 4 | 4 . Tunneler 7 | 7 . Recycler 1 | 1 . Grunt 2 | . 2 Best Kill Streak 4 | 4 1 Combat Bots Only 1 | . 1 Max Kills in Single Turn 1 | 1 1 Gunslinging . | . . Exploded 1 | . 1 Melee . | . . Uniques/NPCs Destroyed . | . . Combat | -11 -10 -------- Run | Yrd Mat Hostile Shots Fired 62 | . 62 Missed 15 | . 15 Hits 47 | . 47 Projectile 47 | . 47 Critical Strikes 1 | . 1 Damage Taken 679 | . 679 Core 259 | . 259 Absorbed by Shields . | . . Core Remaining (%) 100 | 100 . Volleys Fired 52 | 37 15 Largest 2 | 2 2 Hottest 136 | 70 136 Shots Fired 94 | 73 21 Gun 73 | 73 . Cannon 18 | . 18 Launcher 3 | . 3 Special . | . . Kinetic 37 | 37 . Thermal 54 | 36 18 Explosive 3 | . 3 Electromagnetic . | . . Robot Hit Streak 7 | 7 3 Robot Miss Streak 4 | 4 3 Penetration Max . | . . Secondary Targets . | . . Shots Hit Robots 53 | 43 10 Core Hits 16 | 13 3 Critical Kills . | . . Critical Parts Destroyed . | . . Critical Strikes 1 | 1 . Burn 1 | 1 . Melee Attacks . | . . Impact . | . . Slashing . | . . Piercing . | . . Sneak Attacks . | . . Combat Hostiles . | . . Follow-up Attacks . | . . Damage Inflicted 815 | 527 288 Guns 527 | 527 . Cannons 205 | . 205 Explosions 83 | . 83 Melee . | . . Ramming . | . . Kinetic 280 | 280 . Thermal 452 | 247 205 Explosive 83 | . 83 Electromagnetic . | . . Impact . | . . Slashing . | . . Piercing . | . . Highest Corruption . | . . Average Corruption . | . . Corruption Purged . | . . Corruption Blocked . | . . Overload Shots . | . . Overflow Damage 8 | . 8 Projectiles . | . . Explosions 8 | . 8 Melee . | . . Knockbacks . | . . Impact . | . . Kinetic . | . . Secondary . | . . Self-Inflicted Damage 52 | . 52 Shots 3 | . 3 Rammed . | . . Targets Rammed . | . . Kicked . | . . Crushed . | . . Highest Temperature 660 | 99 660 Average Temperature 154 | 29 360 Received Heat Transfer 288 | . 288 Effects 20 | . 20 Shutdowns 3 | . 3 Interference 3 | . 3 Matter Decay 3 | . 3 Short Circuit 1 | . 1 Damage (minor) 5 | . 5 Damage (major) 3 | . 3 Damage (core) 2 | . 2 Siege Activations . | . . Martial Activations . | . . Shielding Activations . | . . Robots Disrupted . | . . Combat Hostiles . | . . Robots Corrupted . | . . Combat Hostiles . | . . Parts Fried . | . . Impact Corruptions . | . . Robots Melted . | . . Combat Hostiles . | . . Parts Melted 2 | 2 . Heat Transferred 1184 | 814 370 Parts Sabotaged . | . . Parts Stolen . | . . Parts Stripped . | . . Power Chain Reactions . | . . Alert | -11 -10 ------- Run | Yrd Mat Maximum Alert Level . | . . Low Security (%) 100 | 100 100 Level 1 . | . . Level 2 . | . . Level 3 . | . . Level 4 . | . . Level 5 . | . . High Security . | . . Max Security . | . . Peak Influence 32 | 10 32 Initial 3 | . 3 Average 3 | 1 5 Influence Increases 155 | 60 95 Destroy 0b10 Robot/C 40 | . 40 Destroy 0b10 Robot/NC 60 | 60 . Destroy Leader 10 | . 10 Successful Hack 32 | . 32 Destroy Structure 13 | . 13 Influence Decreases 155 | 55 100 Entered New Map 2 | . 2 Time Decay 113 | 55 58 Lost Part 40 | . 40 Squads Dispatched . | . . Investigation . | . . Extermination . | . . Reinforcement . | . . Assault . | . . Garrison . | . . Intercept . | . . Searches Triggered . | . . Construction Impeded . | . . Haulers Reinforced . | . . Active Scanning Responses . | . . Cargo Convoy Interrupts . | . . Stealth | -11 -10 --------- Run | Yrd Mat Distress Signals . | . . Communications Jammed . | . . Distress Signals . | . . Times Spotted 6 | . 6 Peak Tracking Total 4 | . 4 Tactical Retreats . | . . Traps | -11 -10 ------- Run | Yrd Mat Traps Triggered . | . . Indirectly . | . . Trap Hack Attempts . | . . Triggered . | . . Disarmed . | . . Reprogrammed . | . . Reused . | . . Traps Extracted . | . . Installed . | . . Triggered . | . . Machines | -11 -10 ---------- Run | Yrd Mat Machines Disabled . | . . Max in Single Turn . | . . Machines Repaired . | . . Machines Dismantled . | . . Machines Sabotaged . | . . Overloaded Fab Kills . | . . Hacking | -11 -10 --------- Run | Yrd Mat Machines Accessed 2 | . 2 Terminals 2 | . 2 Fabricators . | . . Repair Stations . | . . Recycling Units . | . . Scanalyzers . | . . Garrison Access . | . . Total Hacks 7 | . 7 Successful 3 | . 3 Failed 4 | . 4 Catastrophic . | . . Database Lockouts . | . . Manual 1 | . 1 Terminals 7 | . 7 Fabricators . | . . Repair Stations . | . . Recycling Units . | . . Scanalyzers . | . . Garrison Access . | . . Terminal Hacks 3 | . 3 Level Access Points 1 | . 1 Zone Layout 2 | . 2 Fabricator Hacks . | . . Repair Station Hacks . | . . Recycling Unit Hacks . | . . Scanalyzer . | . . Garrison Access Hacks . | . . Unauthorized Hacks . | . . Terminals . | . . Fabricators . | . . Repair Stations . | . . Recycling Units . | . . Scanalyzers . | . . Garrison Access . | . . Data Cores Recovered . | . . Used . | . . Hacking Detections 2 | . 2 Full Trace Events 1 | . 1 Feedback Events . | . . Feedback Blocked . | . . Robot Schematics Acquired . | . . Robots Built . | . . Authchips . | . . Time . | . . Total Robot Build Rating . | . . Part Schematics Acquired . | . . Parts Built . | . . Authchips . | . . Time . | . . Total Part Build Rating . | . . Parts Repaired . | . . Time . | . . Parts Recycled . | . . Recycled Matter . | . . Retrieved Matter . | . . Retrieved Components . | . . Parts Scanalyzed . | . . Part Schematics Acquired . | . . Parts Damaged . | . . Bothacking | -11 -10 ------------ Run | Yrd Mat Used RIF Installer . | . . Robots Hacked . | . . Non-combat . | . . Combat . | . . Robot Hacks Applied . | . . Relay Couplers Released . | . . Fabnet Peak Effective % . | . . Robots Rewired . | . . Allies Hacked . | . . Hacks Repelled . | . . Allies | -11 -10 -------- Run | Yrd Mat Total Allies . | . . Largest Group . | . . Highest-Rated Group . | . . Highest-Rated Ally . | . . Total Orders . | . . Ally Attacks . | . . Total Damage . | . . Kills . | . . Allies Corrupted . | . . Allies Melted . | . . Intel | -11 -10 ------- Run | Yrd Mat Active Infowar (turns) 574 | 244 330 Terrain 574 | 244 330 Seismic 392 | 239 153 Robot Analysis Total . | . . Derelict Logs Recovered . | . . Drone Launches . | . . Drone Recoveries . | . . Exploration | -11 -10 ------------- Run | Yrd Mat Turns Passed 720 | 352 368 Spaces Moved 465 | 211 254 Core 25 | 5 20 Treads 44 | 44 . Legs . | . . Wheels 166 | 162 4 Hover . | . . Flight 230 | . 230 Fastest Speed 50 | 50 90 Average Speed 112 | 104 118 Slowest Speed 275 | 160 275 Overloaded Moves . | . . Propulsion Burnouts . | . . Robots Hopped . | . . Potential Cave-ins . | . . Cave-ins Triggered . | . . Exploration Rate (%) 17 | 7 27 Regions Visited 1 Branch Regions . Pre-discovered Areas . | . . Known Exits Taken . | . . Unknown Exits Taken 1 | 1 . Scrap Searched . | . . Spaces Dug . | . . Terrain Destroyed 15 | . 15 Melee . | . . Projectile . | . . AOE 15 | . 15 Terrain Rammed . | . . Walls Destroyed . | . . Machines Disabled . | . . Actions | -11 -10 --------- Run | Yrd Mat Total 567 | 267 300 Wait 7 | . 7 Move 464 | 210 254 Hop . | . . Pick Up 9 | 4 5 Fast Attach 17 | 10 7 Attach 4 | . 4 Detach 5 | 3 2 Swap . | . . Drop 9 | 3 6 Fire 52 | 37 15 Melee . | . . Ram . | . . Kick . | . . Crush . | . . Escape Stasis . | . . Rewire . | . . Trap . | . . Miscellaneous . | . . Route ------- -11/Scrapyard -10/Materials (discovered 3 exits: Mat x3) History --------- Turn | Location | Event 7 | -11/Scrapyard | Discovered new exit (range 15) 353 | -11/Scrapyard | Entered Materials 354 | -10/Materials | Build established: Mutant 435 | -10/Materials | Identified exit to Materials 492 | -10/Materials | Core integrity fell below 50% 520 | -10/Materials | Core integrity fell below 20% 560 | -10/Materials | Lost 6 parts (1p2n1u2w) 721 | -10/Materials | Destroyed by S-10 Pest with Light Assault Rifle Last Messages --------------- 00585_ U-05 Engineer lays Concrete. 00588_ K-01 Serf collects debris. 00589_ U-05 Engineer lays Concrete. 00591_ K-01 Serf collects debris. 00593_ U-05 Engineer builds a Wall. 00599_ Acquired Heat Sink. 00605_ U-05 Engineer lays Concrete. 00615_ K-01 Serf collects debris. 00617_ Acquired Hammer. 00620_ K-01 Serf collects debris. 00630_ U-05 Engineer builds a Wall. 00631_ U-05 Engineer lays Concrete. 00632_ K-01 Serf cleans the Matter Pump. 00651_ Connecting with Terminal... >>Layout(Zone) Retrieving Zone 3V layout... Downloaded map data. 00659_ K-01 Serf cleans the Recycling Unit. 00686_ Acquired Terrain Scanner. 00713_ Grenade Launcher destroyed. Map ----- +----------------------------------------------------+ | ????? #??## #???#####?#????????????? | | ????? "" #??# #?????### #?#??????????? | | ????? """ #??# ""T"" #?#######?#????????????? | | ????? R" #??# """"" #?# ????????????? | | ????? """ #??# #?# ????????????? | | ????? ##?# #?# ?#??????????? | | ?? ?? #??########## #?# ????????????? | | ????? #??????????## #?# ????????????? | | ?????+################# #?# ????????????? | | ????? #?# ????????????? | | ????? #?# ????????????? | | ????? #?# ????????????? | | ????? ## ########## #######+#####??????????? | | ????? ## ## # ?????????? | | ????? ## ## ! " # #??????????? | | ????? ## ## T + #??????????? | | ?????##### ## " # #######+#??????????? | | ?????????# ## # # ????????????? | | ?????????# ########## # ?????????????? | | ?????????# #??########+## # ?????????????? | | ?????????# #??# + u# ?????????????? | | ?????##### #??# """s# # ?????????????? | | ????? # #?## !!! "Y" # ####+####### ???? | | ?????""" # #??# !! # ???? | | ?????""" # #??# !! """ s "????? | | ?????""" # #??# """@# ???? | | ?????""" # #??# """ ### ####### ???? | | ?????""" # #??# ### #?????????????? | | ????? # ##############?# #????#????????? | | ????? + #??????????????#### #?????????????? | | ????? # #??????#??????????# #?????????????? | | ????????????????#??????????????? ### ????????????? | | ???????????????????????????#???? #???????????????? | | ?????????????????????????????????#???????????????? | | ?????????????????????#?????????????#?????????????? | | ??????????? ???????????????#?#?? ????????????????? | | ???????????????????????#??#??????????????????????? | | ???????????? ????????#???????????????????????????? | | ???????????????????#?????????????????????????????? | | ?????????????????????????????????????????????????? | | ?????????????????????????????????????????????????? | | ?????????????????????????????????????????????????? | | ?????????????????????????????????????????????????? | | ?????????????????????????????????????????????????? | | ??????????????????????????????????????